[Event "69th RUS-ch Women Higher League 2019"]
[Site "Yaroslavl"]
[Date "2019.06.29"]
[Round "3.23"]
[White "Shaydullina, Sandugach"]
[Black "Filippova, Darya"]
[Result "1/2-1/2"]
[ECO "A70"]
[WhiteElo "2128"]
[BlackElo "2174"]
[Annotator "NA"]
[PlyCount "93"]
[EventDate "2019.06.27"]
[EventType "swiss"]
[EventCountry "RUS"]
[SourceTitle "playchess.com"]
[Source "ChessBase"]
[SourceQuality "1"]
[TimeControl "40/5400+30:1800+30"]

1. d4 {[%emt 0:00:00]} Nf6 {[%emt 0:00:00]} 2. c4 {[%emt 0:00:00]} c5 {[%emt 0:00:00]} 3. d5 {[%emt 0:00:07]} e6 {[%emt 0:00:11]} 4. Nc3 {[%emt 0:00:07]} exd5 {[%emt 0:00:20]} 5. cxd5 {[%emt 0:00:08]} d6 {[%emt 0:00:14]} 6. e4 {[%emt 0:00:09]} g6 {[%emt 0:00:14]} 7. Nf3 {[%emt 0:00:27]} Bg7 {[%emt 0:00:14]} 8. h3 {[%emt 0:00:06]} O-O {[%emt 0:00:21]} 9. Bd3 {[%emt 0:00:04]} b5 {[%emt 0:01:29]} 10. Bxb5 {[%emt 0:01:09]} Nxe4 {[%emt 0:01:26]} 11. Nxe4 {[%emt 0:00:06]} Qa5+ {[%emt 0:00:28]} 12. Nfd2 {[%emt 0:00:06]} Qxb5 {[%emt 0:00:28]} 13. Nxd6 {[%emt 0:00:07]} Qa6 {[%emt 0:00:21]} 14. N2c4 {[%emt 0:00:09]} Nd7 {[%emt 0:00:25]} 15. O-O {[%emt 0:00:11]} Ne5 {[%emt 0:00:24]} 16. Qb3 {[%emt 0:03:34]} Nxc4 {[%emt 0:14:59]} 17. Nxc4 {[%emt 0:00:06]} Bd7 {[%emt 0:02:04]} 18. Bf4 {[%emt 0:03:45]} Ba4 {[%emt 0:01:26]} 19. Qd3 {[%emt 0:00:12]} Bb5 {[%emt 0:00:50]} 20. Rac1 {[%emt 0:01:40]} Bxb2 {[%emt 0:01:26]} 21. a4 {[%emt 0:00:39]} Bxc4 {[%emt 0:08:59]} 22. Qxc4 {[%emt 0:00:28]} Qf6 {[%emt 0:04:33]} 23. Rcd1 {[%emt 0:01:32]} Rac8 {[%emt 0:06:37]} 24. Be3 {[%emt 0:01:01]} Qf5 {[%emt 0:11:39]} 25. Qb5 {[%emt 0:03:25]} Ba3 {[%emt 0:02:50]} 26. d6 {[%emt 0:01:43]} Rfd8 {[%emt 0:08:04]} 27. Qc4 {[%emt 0:01:39]} Rd7 {[%emt 0:06:55]} 28. Bh6 {[%emt 0:01:18]} Bb2 {[%emt 0:04:24]} 29. Rfe1 {[%emt 0:00:33]} Qh5 {[%emt 0:07:28]} 30. Bf4 {[%emt 0:01:13]} Rb8 {[%emt 0:04:04]} 31. Rd5 {[%emt 0:01:58]} Qh4 {[%emt 0:00:13]} 32. g3 {[%emt 0:00:55]} Qxh3 {[%emt 0:01:11]} 33. Rxc5 {[%emt 0:00:04]} Kg7 {[%emt 0:02:28]} 34. Rc7 {[%emt 0:02:21]} Bf6 {[%emt 0:01:50]} 35. Qc5 {[%emt 0:02:09]} Rbd8 {[%emt 0:03:36]} 36. a5 {[%emt 0:05:43]} h6 {[%emt 0:01:55]} 37. a6 {[%emt 0:01:28]} g5 {[%emt 0:01:08]} 38. Be5 {[%emt 0:00:02]} Qe6 {[%emt 0:01:07]} 39. Bxf6+ {[%emt 0:01:35]} Qxf6 {[%emt 0:00:09]} 40. Re7 {[%emt 0:00:00]} Rxd6 {[%emt 0:00:00]} 41. Rxa7 {[%emt 0:08:11]} Qa1+ {[%emt 0:05:34]} 42. Kg2 {[%emt 0:00:12]} Rf6 {[%emt 0:00:19]} 43. Qc4 {[%emt 0:03:52]} Rf8 {[%emt 0:01:25]} 44. Re2 {[%emt 0:02:01]} Rd8 {[%emt 0:03:11]} 45. Ree7 {[%emt 0:02:20]} Rf8 {[%emt 0:00:21]} 46. Re2 {[%emt 0:08:20]} Rd8 {[%emt 0:00:25]} 47. Ree7 {[%emt 0:01:07]} 1/2-1/2

[Event "69th RUS-ch Women Higher League 2019"]
[Site "Yaroslavl"]
[Date "2019.06.29"]
[Round "3.24"]
[White "Faizutdinova, Diana"]
[Black "Chkhan, Viktoria"]
[Result "1-0"]
[ECO "A11"]
[WhiteElo "2061"]
[BlackElo "2141"]
[Annotator "NA"]
[PlyCount "55"]
[EventDate "2019.06.27"]
[EventType "swiss"]
[EventCountry "RUS"]
[SourceTitle "playchess.com"]
[Source "ChessBase"]
[SourceQuality "1"]
[TimeControl "40/5400+30:1800+30"]

1. c4 {[%emt 0:00:00]} c6 {[%emt 0:00:00]} 2. Nc3 {[%emt 0:00:00]} d5 {[%emt 0:00:00]} 3. cxd5 {[%emt 0:00:00]} cxd5 {[%emt 0:00:00]} 4. d4 {[%emt 0:00:00]} Nc6 {[%emt 0:00:02]} 5. Bf4 {[%emt 0:00:16]} Nf6 {[%emt 0:00:08]} 6. Nf3 {[%emt 0:00:12]} e6 {[%emt 0:00:17]} 7. e3 {[%emt 0:00:14]} a6 {[%emt 0:00:17]} 8. Bd3 {[%emt 0:01:33]} Bd6 {[%emt 0:00:14]} 9. Bg3 {[%emt 0:00:21]} O-O {[%emt 0:00:10]} 10. Rc1 {[%emt 0:02:44]} Qe7 {[%emt 0:02:23]} 11. Ne5 {[%emt 0:04:31]} Nd7 {[%emt 0:36:23]} 12. f4 {[%emt 0:24:56]} Re8 {[%emt 0:10:29]} 13. O-O {[%emt 0:12:02]} Nf8 {[%emt 0:19:34]} 14. Na4 {[%emt 0:14:48]} Bd7 {[%emt 0:03:12]} 15. Nb6 {[%emt 0:00:30]} Rab8 {[%emt 0:02:07]} 16. Qh5 {[%emt 0:09:05]} g6 {[%emt 0:02:43]} 17. Qh6 {[%emt 0:01:06]} Nb4 {[%emt 0:08:03]} 18. Bh4 {[%emt 0:04:36]} f6 {[%emt 0:00:11]} 19. Ng4 {[%emt 0:00:42]} Nxd3 {[%emt 0:00:22]} 20. Nxf6+ {[%emt 0:00:14]} Kf7 {[%emt 0:01:34]} 21. Nxh7 {[%emt 0:04:12]} Nxc1 {[%emt 0:01:05]} 22. Rxc1 {[%emt 0:01:12]} Qxh4 {[%emt 0:00:30]} 23. Qxh4 {[%emt 0:00:06]} Be7 {[%emt 0:00:08]} 24. Qh6 {[%emt 0:02:32]} Bc6 {[%emt 0:00:14]} 25. g4 {[%emt 0:03:29]} Bd8 {[%emt 0:00:13]} 26. Ng5+ {[%emt 0:02:07]} Kg8 {[%emt 0:00:42]} 27. f5 {[%emt 0:01:00]} Bxb6 {[%emt 0:02:00]} 28. f6 {[%emt 0:00:18]} 1-0

[Event "69th RUS-ch Women Higher League 2019"]
[Site "Yaroslavl"]
[Date "2019.06.30"]
[Round "4.1"]
[White "Shuvalova, Polina"]
[Black "Tomilova, Elena"]
[Result "0-1"]
[ECO "C96"]
[WhiteElo "2418"]
[BlackElo "2289"]
[Annotator "NA"]
[PlyCount "94"]
[EventDate "2019.06.27"]
[EventType "swiss"]
[EventCountry "RUS"]
[SourceTitle "playchess.com"]
[Source "ChessBase"]
[SourceQuality "1"]
[TimeControl "40/5400+30:1800+30"]

1. e4 {[%emt 0:00:00]} e5 {[%emt 0:00:00]} 2. Nf3 {[%emt 0:00:00]} Nc6 {[%emt 0:00:00]} 3. Bb5 {[%emt 0:00:00]} a6 {[%emt 0:00:00]} 4. Ba4 {[%emt 0:00:00]} Nf6 {[%emt 0:00:04]} 5. O-O {[%emt 0:00:00]} Be7 {[%emt 0:00:11]} 6. Re1 {[%emt 0:00:00]} b5 {[%emt 0:00:05]} 7. Bb3 {[%emt 0:00:00]} d6 {[%emt 0:00:13]} 8. c3 {[%emt 0:00:00]} O-O {[%emt 0:00:10]} 9. h3 {[%emt 0:00:03]} Na5 {[%emt 0:00:14]} 10. Bc2 {[%emt 0:00:02]} d5 {[%emt 0:00:07]} 11. d4 {[%emt 0:15:03]} Nxe4 {[%emt 0:02:00]} 12. Nxe5 {[%emt 0:02:12]} f6 {[%emt 0:02:23]} 13. Nd3 {[%emt 0:04:07]} Bd6 {[%emt 0:09:41]} 14. a4 {[%emt 0:03:34]} Bd7 {[%emt 0:10:31]} 15. Bf4 {[%emt 0:07:30]} f5 {[%emt 0:09:45]} 16. Bxd6 {[%emt 0:18:22]} cxd6 {[%emt 0:01:15]} 17. Nd2 {[%emt 0:04:02]} Nc4 {[%emt 0:08:42]} 18. Nf1 {[%emt 0:01:36]} Qh4 {[%emt 0:06:50]} 19. axb5 {[%emt 0:02:25]} axb5 {[%emt 0:04:29]} 20. Qf3 {[%emt 0:01:16]} Rxa1 {[%emt 0:06:41]} 21. Rxa1 {[%emt 0:00:05]} f4 {[%emt 0:05:52]} 22. Ra7 {[%emt 0:11:16]} Be6 {[%emt 0:00:45]} 23. Ne1 {[%emt 0:02:48]} Ng5 {[%emt 0:02:23]} 24. Qe2 {[%emt 0:07:02]} f3 {[%emt 0:04:00]} 25. Nxf3 {[%emt 0:00:09]} Rxf3 {[%emt 0:00:24]} 26. Ng3 {[%emt 0:06:06]} Rf8 {[%emt 0:02:46]} 27. b3 {[%emt 0:03:11]} Nb6 {[%emt 0:01:16]} 28. Qxb5 {[%emt 0:00:49]} Bxh3 {[%emt 0:03:59]} 29. Bd1 {[%emt 0:08:27]} Nc8 {[%emt 0:02:47]} 30. Rc7 {[%emt 0:01:01]} Be6 {[%emt 0:01:41]} 31. Bc2 {[%emt 0:01:10]} Kh8 {[%emt 0:02:07]} 32. Qe2 {[%emt 0:00:46]} Qf4 {[%emt 0:04:27]} 33. Nh5 {[%emt 0:00:33]} Qc1+ {[%emt 0:00:42]} 34. Kh2 {[%emt 0:00:22]} Bf7 {[%emt 0:00:25]} 35. Ng3 {[%emt 0:01:26]} Qf4 {[%emt 0:00:42]} 36. Kg1 {[%emt 0:00:45]} g6 {[%emt 0:01:29]} 37. b4 {[%emt 0:01:41]} Nb6 {[%emt 0:01:17]} 38. Bd3 {[%emt 0:00:36]} Nc4 {[%emt 0:02:01]} 39. b5 {[%emt 0:00:33]} Rb8 {[%emt 0:02:21]} 40. Qe7 {[%emt 0:00:00]} Re8 {[%emt 0:00:00]} 41. Qd7 {[%emt 0:02:54]} Re1+ {[%emt 0:13:00]} 42. Bf1 {[%emt 0:06:40]} Rb1 {[%emt 0:08:28]} 43. b6 {[%emt 0:06:05]} Nxb6 {[%emt 0:01:22]} 44. Qd8+ {[%emt 0:00:05]} Kg7 {[%emt 0:00:06]} 45. Rb7 {[%emt 0:00:11]} Rb2 {[%emt 0:00:53]} 46. Ne2 {[%emt 0:02:05]} Qf6 {[%emt 0:01:03]} 47. Qc7 {[%emt 0:01:21]} Nc4 {[%emt 0:00:12]} 0-1

[Event "69th RUS-ch Women Higher League 2019"]
[Site "Yaroslavl"]
[Date "2019.06.30"]
[Round "4.2"]
[White "Guseva, Marina"]
[Black "Bodnaruk, Anastasia"]
[Result "1/2-1/2"]
[ECO "E63"]
[WhiteElo "2379"]
[BlackElo "2440"]
[Annotator "NA"]
[PlyCount "88"]
[EventDate "2019.06.27"]
[EventType "swiss"]
[EventCountry "RUS"]
[SourceTitle "playchess.com"]
[Source "ChessBase"]
[SourceQuality "1"]
[TimeControl "40/5400+30:1800+30"]

1. d4 {[%emt 0:00:00]} Nf6 {[%emt 0:00:00]} 2. c4 {[%emt 0:00:00]} g6 {[%emt 0:00:00]} 3. Nf3 {[%emt 0:00:00]} Bg7 {[%emt 0:00:00]} 4. g3 {[%emt 0:00:00]} O-O {[%emt 0:00:00]} 5. Bg2 {[%emt 0:00:00]} d6 {[%emt 0:00:06]} 6. O-O {[%emt 0:00:00]} Nc6 {[%emt 0:00:03]} 7. Nc3 {[%emt 0:00:00]} a6 {[%emt 0:00:06]} 8. d5 {[%emt 0:00:03]} Na5 {[%emt 0:00:09]} 9. Nd2 {[%emt 0:00:06]} c5 {[%emt 0:00:06]} 10. Qc2 {[%emt 0:00:04]} Rb8 {[%emt 0:00:42]} 11. a4 {[%emt 0:00:06]} e5 {[%emt 0:01:54]} 12. e4 {[%emt 0:00:05]} h5 {[%emt 0:07:47]} 13. h4 {[%emt 0:14:20]} Ng4 {[%emt 0:25:18]} 14. b3 {[%emt 0:00:05]} Bd7 {[%emt 0:00:32]} 15. Ra3 {[%emt 0:15:09]} Qe7 {[%emt 0:17:58]} 16. Nf3 {[%emt 0:04:58]} b6 {[%emt 0:00:40]} 17. Bg5 {[%emt 0:06:46]} f6 {[%emt 0:01:28]} 18. Bd2 {[%emt 0:00:05]} Nb7 {[%emt 0:02:13]} 19. Raa1 {[%emt 0:00:07]} a5 {[%emt 0:01:46]} 20. Rae1 {[%emt 0:03:50]} Nd8 {[%emt 0:01:08]} 21. Qc1 {[%emt 0:07:26]} Nf7 {[%emt 0:02:10]} 22. Nd1 {[%emt 0:02:57]} Bh6 {[%emt 0:11:07]} 23. Bxh6 {[%emt 0:02:23]} Nfxh6 {[%emt 0:05:40]} 24. Ne3 {[%emt 0:08:46]} Kg7 {[%emt 0:00:30]} 25. Nh2 {[%emt 0:01:33]} Nxh2 {[%emt 0:03:43]} 26. Kxh2 {[%emt 0:00:02]} f5 {[%emt 0:00:21]} 27. exf5 {[%emt 0:05:31]} Bxf5 {[%emt 0:06:24]} 28. Nxf5+ {[%emt 0:12:48]} Nxf5 {[%emt 0:04:11]} 29. f4 {[%emt 0:00:29]} Nd4 {[%emt 0:01:29]} 30. Re3 {[%emt 0:03:25]} Qc7 {[%emt 0:03:42]} 31. fxe5 {[%emt 0:00:45]} dxe5 {[%emt 0:00:14]} 32. Be4 {[%emt 0:03:16]} Qe7 {[%emt 0:02:10]} 33. Kg2 {[%emt 0:02:48]} Rxf1 {[%emt 0:01:02]} 34. Qxf1 {[%emt 0:00:05]} Rf8 {[%emt 0:00:16]} 35. Qe1 {[%emt 0:01:40]} Qf6 {[%emt 0:00:37]} 36. Bb1 {[%emt 0:01:42]} Nf3 {[%emt 0:01:27]} 37. Qe2 {[%emt 0:00:27]} Nd4 {[%emt 0:00:22]} 38. Qe1 {[%emt 0:00:28]} Rf7 {[%emt 0:00:19]} 39. Be4 {[%emt 0:01:25]} Kh6 {[%emt 0:00:53]} 40. Rd3 {[%emt 0:00:00]} Kg7 {[%emt 0:00:00]} 41. Re3 {[%emt 0:02:37]} Kf8 {[%emt 0:08:14]} 42. Bb1 {[%emt 0:00:59]} Kg7 {[%emt 0:03:18]} 43. Be4 {[%emt 0:01:27]} Rf8 {[%emt 0:05:31]} 44. Bb1 {[%emt 0:01:20]} Rf7 {[%emt 0:01:04]} 1/2-1/2

[Event "69th RUS-ch Women Higher League 2019"]
[Site "Yaroslavl"]
[Date "2019.06.30"]
[Round "4.3"]
[White "Dordzhieva, Dinara"]
[Black "Kovalevskaya, Ekaterina"]
[Result "1/2-1/2"]
[ECO "A05"]
[WhiteElo "2306"]
[BlackElo "2413"]
[Annotator "NA"]
[PlyCount "60"]
[EventDate "2019.06.27"]
[EventType "swiss"]
[EventCountry "RUS"]
[SourceTitle "playchess.com"]
[Source "ChessBase"]
[SourceQuality "1"]
[TimeControl "40/5400+30:1800+30"]

1. Nf3 {[%emt 0:00:00]} Nf6 {[%emt 0:00:00]} 2. c4 {[%emt 0:00:00]} e6 {[%emt 0:00:00]} 3. g3 {[%emt 0:00:16]} d5 {[%emt 0:00:00]} 4. Bg2 {[%emt 0:00:04]} c5 {[%emt 0:00:11]} 5. O-O {[%emt 0:02:16]} Nc6 {[%emt 0:00:46]} 6. cxd5 {[%emt 0:00:14]} exd5 {[%emt 0:00:06]} 7. d4 {[%emt 0:00:03]} Be7 {[%emt 0:00:12]} 8. dxc5 {[%emt 0:00:15]} Bxc5 {[%emt 0:00:03]} 9. a3 {[%emt 0:00:12]} Ne4 {[%emt 0:01:40]} 10. Nbd2 {[%emt 0:06:53]} O-O {[%emt 0:04:02]} 11. Nb3 {[%emt 0:01:56]} Be7 {[%emt 0:05:18]} 12. Nbd4 {[%emt 0:01:00]} Bf6 {[%emt 0:00:20]} 13. Be3 {[%emt 0:03:20]} Bg4 {[%emt 0:09:20]} 14. Rc1 {[%emt 0:06:37]} Rc8 {[%emt 0:20:33]} 15. Nxc6 {[%emt 0:26:45]} bxc6 {[%emt 0:00:46]} 16. Bd4 {[%emt 0:00:03]} Re8 {[%emt 0:17:32]} 17. Re1 {[%emt 0:05:57]} c5 {[%emt 0:09:43]} 18. Bxf6 {[%emt 0:01:50]} Nxf6 {[%emt 0:00:03]} 19. Qc2 {[%emt 0:10:41]} h6 {[%emt 0:04:30]} 20. h3 {[%emt 0:01:37]} Be6 {[%emt 0:00:40]} 21. e3 {[%emt 0:01:08]} Qb6 {[%emt 0:04:10]} 22. Ne5 {[%emt 0:11:06]} c4 {[%emt 0:08:24]} 23. Nf3 {[%emt 0:01:24]} Rb8 {[%emt 0:00:26]} 24. Re2 {[%emt 0:00:44]} Ne4 {[%emt 0:02:20]} 25. Nd4 {[%emt 0:01:37]} Nc5 {[%emt 0:00:11]} 26. Rb1 {[%emt 0:05:57]} Rec8 {[%emt 0:04:07]} 27. Qc3 {[%emt 0:04:04]} Na4 {[%emt 0:00:47]} 28. Qc2 {[%emt 0:00:11]} Nc5 {[%emt 0:00:26]} 29. Qc3 {[%emt 0:00:04]} Na4 {[%emt 0:00:16]} 30. Qc2 {[%emt 0:00:10]} Nc5 1/2-1/2

[Event "69th RUS-ch Women Higher League 2019"]
[Site "Yaroslavl"]
[Date "2019.06.30"]
[Round "4.4"]
[White "Shafigullina, Zarina"]
[Black "Gritsayeva, Oksana"]
[Result "1-0"]
[ECO "A40"]
[WhiteElo "2240"]
[BlackElo "2381"]
[Annotator "NA"]
[PlyCount "167"]
[EventDate "2019.06.27"]
[EventType "swiss"]
[EventCountry "RUS"]
[SourceTitle "playchess.com"]
[Source "ChessBase"]
[SourceQuality "1"]
[TimeControl "40/5400+30:1800+30"]

1. d4 {[%emt 0:00:00]} Nf6 {[%emt 0:00:00]} 2. c4 {[%emt 0:00:00]} e6 {[%emt 0:00:23]} 3. g3 {[%emt 0:00:11]} c5 {[%emt 0:00:25]} 4. Nf3 {[%emt 0:00:37]} cxd4 {[%emt 0:00:29]} 5. Nxd4 {[%emt 0:00:18]} a6 {[%emt 0:00:06]} 6. Bg2 {[%emt 0:00:54]} Qc7 {[%emt 0:00:10]} 7. b3 {[%emt 0:03:05]} Bb4+ {[%emt 0:00:20]} 8. Bd2 {[%emt 0:01:15]} Bc5 {[%emt 0:00:07]} 9. Nc2 {[%emt 0:03:35]} O-O {[%emt 0:02:40]} 10. O-O {[%emt 0:00:26]} Be7 {[%emt 0:00:20]} 11. Nc3 {[%emt 0:06:17]} d6 {[%emt 0:00:12]} 12. Rc1 {[%emt 0:02:08]} Nbd7 {[%emt 0:00:44]} 13. h3 {[%emt 0:01:37]} Rb8 {[%emt 0:02:30]} 14. Nd4 {[%emt 0:00:28]} Re8 {[%emt 0:01:39]} 15. g4 {[%emt 0:05:49]} Ne5 {[%emt 0:07:37]} 16. Bf4 {[%emt 0:05:43]} Bd7 {[%emt 0:11:42]} 17. Bg3 {[%emt 0:02:30]} Rbc8 {[%emt 0:06:11]} 18. e3 {[%emt 0:04:14]} g6 {[%emt 0:04:22]} 19. f4 {[%emt 0:22:47]} Nc6 {[%emt 0:00:28]} 20. Bf3 {[%emt 0:00:50]} h6 {[%emt 0:04:45]} 21. Kh2 {[%emt 0:03:13]} Bf8 {[%emt 0:02:41]} 22. f5 {[%emt 0:14:06]} exf5 {[%emt 0:09:59]} 23. gxf5 {[%emt 0:00:17]} g5 {[%emt 0:01:51]} 24. h4 {[%emt 0:03:14]} Ne5 {[%emt 0:02:06]} 25. hxg5 {[%emt 0:07:40]} hxg5 {[%emt 0:00:05]} 26. Rg1 {[%emt 0:00:36]} Bg7 {[%emt 0:02:59]} 27. Nd5 {[%emt 0:02:15]} Nxd5 {[%emt 0:06:09]} 28. Bxd5 {[%emt 0:00:09]} Bc6 {[%emt 0:07:33]} 29. e4 {[%emt 0:09:11]} Bxd5 {[%emt 0:01:01]} 30. exd5 {[%emt 0:00:05]} Qe7 {[%emt 0:11:28]} 31. Kg2 {[%emt 0:00:03]} Qf6 {[%emt 0:01:16]} 32. Rh1 {[%emt 0:00:13]} Re7 {[%emt 0:02:45]} 33. Rc2 {[%emt 0:00:48]} Rce8 {[%emt 0:00:30]} 34. Qh5 {[%emt 0:00:52]} Nd7 {[%emt 0:00:52]} 35. Qh7+ {[%emt 0:00:41]} Kf8 {[%emt 0:00:05]} 36. Ne6+ {[%emt 0:00:05]} fxe6 {[%emt 0:02:04]} 37. fxe6 {[%emt 0:00:04]} Qd4 {[%emt 0:04:53]} 38. Rf1+ {[%emt 0:01:42]} Nf6 {[%emt 0:00:04]} 39. Rcf2 {[%emt 0:00:15]} Rxe6 {[%emt 0:02:04]} 40. dxe6 {[%emt 0:00:00]} Rxe6 {[%emt 0:00:00]} 41. Qf5 {[%emt 0:01:18]} Kf7 {[%emt 0:08:38]} 42. Qxg5 {[%emt 0:09:41]} Kg8 {[%emt 0:03:42]} 43. Qf5 {[%emt 0:01:45]} Qg4 {[%emt 0:03:02]} 44. Rh1 {[%emt 0:06:01]} Qxf5 {[%emt 0:03:46]} 45. Rxf5 {[%emt 0:00:05]} Ne4 {[%emt 0:00:10]} 46. Bf4 {[%emt 0:04:32]} Nc3 {[%emt 0:02:41]} 47. Kf3 {[%emt 0:05:08]} Ne2 {[%emt 0:00:59]} 48. Rg5 {[%emt 0:01:05]} Nd4+ {[%emt 0:00:41]} 49. Kg4 {[%emt 0:01:36]} Re4 {[%emt 0:01:11]} 50. Rf1 {[%emt 0:03:55]} Ne6 {[%emt 0:02:33]} 51. Rg6 {[%emt 0:00:24]} Kf7 {[%emt 0:01:06]} 52. Kf5 {[%emt 0:00:08]} Re2 {[%emt 0:06:33]} 53. Bxd6 {[%emt 0:00:55]} Nd4+ {[%emt 0:01:30]} 54. Kg5+ {[%emt 0:00:03]} Kg8 {[%emt 0:00:06]} 55. Kh5 {[%emt 0:00:59]} Re3 {[%emt 0:02:26]} 56. Bf8 {[%emt 0:01:14]} Re5+ {[%emt 0:00:46]} 57. Kg4 {[%emt 0:00:32]} Re4+ {[%emt 0:00:07]} 58. Kh3 {[%emt 0:00:30]} Re3+ {[%emt 0:00:09]} 59. Kg2 {[%emt 0:00:12]} Re2+ {[%emt 0:01:19]} 60. Kh1 {[%emt 0:00:12]} Ne6 {[%emt 0:00:25]} 61. Bxg7 {[%emt 0:00:10]} Nxg7 {[%emt 0:00:04]} 62. Rfg1 {[%emt 0:00:14]} Re7 {[%emt 0:00:04]} 63. Kg2 {[%emt 0:00:09]} Kf7 {[%emt 0:00:36]} 64. Kf3 {[%emt 0:00:17]} Ne6 {[%emt 0:00:20]} 65. R6g4 {[%emt 0:00:21]} Rd7 {[%emt 0:00:19]} 66. Rh4 {[%emt 0:00:38]} Kf6 {[%emt 0:01:21]} 67. Rh6+ {[%emt 0:00:25]} Kf5 {[%emt 0:00:05]} 68. Rh5+ {[%emt 0:00:10]} Kf6 {[%emt 0:00:06]} 69. Ke4 {[%emt 0:00:12]} Rd4+ {[%emt 0:00:47]} 70. Ke3 {[%emt 0:00:08]} Rd7 {[%emt 0:00:17]} 71. Rf1+ {[%emt 0:00:30]} Kg6 {[%emt 0:01:05]} 72. Re5 {[%emt 0:01:17]} Rd6 {[%emt 0:00:08]} 73. Rd5 {[%emt 0:01:17]} Rc6 {[%emt 0:00:05]} 74. Rfd1 {[%emt 0:00:13]} Kf6 {[%emt 0:00:38]} 75. Rd6 {[%emt 0:00:29]} Rc8 {[%emt 0:01:10]} 76. Rb6 {[%emt 0:00:23]} Rc7 {[%emt 0:00:29]} 77. Rdd6 {[%emt 0:01:07]} Re7 {[%emt 0:00:03]} 78. Ke4 {[%emt 0:00:15]} Kf7 {[%emt 0:00:05]} 79. Kd5 {[%emt 0:01:02]} Nc7+ {[%emt 0:01:29]} 80. Kc5 {[%emt 0:00:25]} Na8 {[%emt 0:00:44]} 81. Rf6+ {[%emt 0:00:09]} Kg7 {[%emt 0:01:00]} 82. Rg6+ {[%emt 0:00:10]} Kh7 {[%emt 0:00:08]} 83. Rh6+ {[%emt 0:00:06]} Kg7 {[%emt 0:00:10]} 84. Rbg6+ {[%emt 0:00:06]} 1-0

[Event "69th RUS-ch Women Higher League 2019"]
[Site "Yaroslavl"]
[Date "2019.06.30"]
[Round "4.5"]
[White "Borisova, Ekaterina"]
[Black "Voit, Daria"]
[Result "1-0"]
[ECO "A50"]
[WhiteElo "2267"]
[BlackElo "2339"]
[Annotator "NA"]
[PlyCount "51"]
[EventDate "2019.06.27"]
[EventType "swiss"]
[EventCountry "RUS"]
[SourceTitle "playchess.com"]
[Source "ChessBase"]
[SourceQuality "1"]
[TimeControl "40/5400+30:1800+30"]

1. d4 {[%emt 0:00:00]} Nf6 {[%emt 0:00:00]} 2. c4 {[%emt 0:00:00]} b6 {[%emt 0:00:00]} 3. f3 {[%emt 0:01:19]} e6 {[%emt 0:05:20]} 4. e4 {[%emt 0:00:18]} Bb7 {[%emt 0:01:36]} 5. Nc3 {[%emt 0:01:32]} Bb4 {[%emt 0:00:21]} 6. Bg5 {[%emt 0:02:50]} h6 {[%emt 0:01:48]} 7. Bh4 {[%emt 0:02:33]} Bxc3+ {[%emt 0:02:25]} 8. bxc3 {[%emt 0:00:07]} d6 {[%emt 0:00:14]} 9. Bd3 {[%emt 0:02:24]} Nc6 {[%emt 0:01:51]} 10. f4 {[%emt 0:04:04]} Na5 {[%emt 0:06:30]} 11. Qe2 {[%emt 0:02:10]} Qd7 {[%emt 0:11:32]} 12. Nf3 {[%emt 0:13:24]} Qa4 {[%emt 0:15:09]} 13. O-O {[%emt 0:02:23]} Nd7 {[%emt 0:04:35]} 14. Rab1 {[%emt 0:10:13]} f6 {[%emt 0:06:37]} 15. Rb4 {[%emt 0:02:20]} Qa3 {[%emt 0:01:27]} 16. Qc2 {[%emt 0:00:49]} d5 {[%emt 0:07:38]} 17. exd5 {[%emt 0:07:09]} exd5 {[%emt 0:00:21]} 18. Nd2 {[%emt 0:03:37]} Nxc4 {[%emt 0:07:45]} 19. Bxc4 {[%emt 0:07:52]} dxc4 {[%emt 0:00:24]} 20. Nxc4 {[%emt 0:00:04]} Qa6 {[%emt 0:00:16]} 21. Qg6+ {[%emt 0:00:25]} Kd8 {[%emt 0:03:53]} 22. Qxg7 {[%emt 0:01:17]} Re8 {[%emt 0:00:14]} 23. Ne5 {[%emt 0:03:03]} Nf8 {[%emt 0:12:37]} 24. Qxf6+ {[%emt 0:03:37]} Kc8 {[%emt 0:00:12]} 25. Qf7 {[%emt 0:00:35]} Bxg2 {[%emt 0:00:23]} 26. Rc4 {[%emt 0:03:11]} 1-0

[Event "69th RUS-ch Women Higher League 2019"]
[Site "Yaroslavl"]
[Date "2019.06.30"]
[Round "4.6"]
[White "Charochkina, Daria"]
[Black "Komiagina, Maria"]
[Result "1-0"]
[ECO "B06"]
[WhiteElo "2338"]
[BlackElo "2254"]
[Annotator "NA"]
[PlyCount "71"]
[EventDate "2019.06.27"]
[EventType "swiss"]
[EventCountry "RUS"]
[SourceTitle "playchess.com"]
[Source "ChessBase"]
[SourceQuality "1"]
[TimeControl "40/5400+30:1800+30"]

1. e4 {[%emt 0:00:00]} g6 {[%emt 0:00:00]} 2. d4 {[%emt 0:01:09]} Bg7 {[%emt 0:00:04]} 3. Nc3 {[%emt 0:00:09]} d6 {[%emt 0:00:15]} 4. Be3 {[%emt 0:00:05]} a6 {[%emt 0:00:04]} 5. a4 {[%emt 0:04:00]} Nf6 {[%emt 0:01:43]} 6. h3 {[%emt 0:00:55]} Nbd7 {[%emt 0:04:01]} 7. Nf3 {[%emt 0:00:11]} e5 {[%emt 0:01:15]} 8. Bc4 {[%emt 0:02:18]} O-O {[%emt 0:03:21]} 9. O-O {[%emt 0:00:40]} exd4 {[%emt 0:09:03]} 10. Bxd4 {[%emt 0:00:46]} c5 {[%emt 0:02:16]} 11. Be3 {[%emt 0:20:01]} Qb6 {[%emt 0:06:00]} 12. Qd3 {[%emt 0:00:24]} Ne5 {[%emt 0:00:05]} 13. Nxe5 {[%emt 0:08:51]} dxe5 {[%emt 0:00:39]} 14. a5 {[%emt 0:00:06]} Qc7 {[%emt 0:09:18]} 15. Rfd1 {[%emt 0:07:00]} Bd7 {[%emt 0:00:40]} 16. Qd6 {[%emt 0:00:04]} Qxd6 17. Rxd6 Bc6 {[%emt 0:00:36]} 18. Bxc5 {[%emt 0:02:33]} Rfe8 {[%emt 0:06:02]} 19. Be3 {[%emt 0:22:12]} Rac8 {[%emt 0:00:32]} 20. Bb3 {[%emt 0:01:10]} Nh5 {[%emt 0:03:23]} 21. Ba4 {[%emt 0:06:19]} Bxa4 {[%emt 0:04:33]} 22. Rxa4 {[%emt 0:00:41]} Bf8 {[%emt 0:03:57]} 23. Rb6 {[%emt 0:03:59]} Rb8 24. Rc4 Be7 {[%emt 0:00:38]} 25. Nd5 {[%emt 0:02:09]} Bd8 26. Rb3 {[%emt 0:01:35]} f5 {[%emt 0:09:03]} 27. Ba7 {[%emt 0:02:49]} Ra8 {[%emt 0:00:04]} 28. Rxb7 {[%emt 0:01:27]} f4 {[%emt 0:01:55]} 29. Bb6 {[%emt 0:01:31]} Bh4 {[%emt 0:01:17]} 30. Rcc7 {[%emt 0:00:34]} Rac8 {[%emt 0:01:15]} 31. c4 {[%emt 0:00:36]} Rxc7 {[%emt 0:00:18]} 32. Rxc7 {[%emt 0:00:57]} Ng7 33. g3 {[%emt 0:00:30]} fxg3 {[%emt 0:00:58]} 34. fxg3 {[%emt 0:00:03]} Bd8 {[%emt 0:00:05]} 35. Rd7 {[%emt 0:03:18]} Bxb6+ {[%emt 0:00:32]} 36. axb6 {[%emt 0:00:10]} 1-0